[Event "Cellavision Cup 2018"]
[Site "Lund"]
[Date "2018.08.05"]
[Round "8"]
[White "Seo, Jung Min"]
[Black "Kucuksari, Kaan"]
[Result "1/2-1/2"]
[ECO "D45"]
[WhiteElo "2356"]
[BlackElo "2329"]
[Annotator "NA"]
[PlyCount "128"]
[EventDate "2018.08.03"]
[EventType "swiss"]
[EventCountry "SWE"]
[SourceTitle "playchess.com"]
[Source "ChessBase"]
[SourceQuality "1"]
[TimeControl "5400+30"]

1. d4 {[%emt 0:00:00]} Nf6 {[%emt 0:00:00]} 2. c4 {[%emt 0:00:00]} e6 {[%emt 0:00:00]} 3. Nf3 {[%emt 0:00:00]} d5 {[%emt 0:00:00]} 4. Nc3 {[%emt 0:00:00]} c6 {[%emt 0:00:04]} 5. e3 {[%emt 0:00:28]} Nbd7 {[%emt 0:00:08]} 6. b3 {[%emt 0:00:42]} Bd6 {[%emt 0:00:22]} 7. Be2 {[%emt 0:01:22]} Qe7 {[%emt 0:00:11]} 8. O-O {[%emt 0:00:23]} O-O {[%emt 0:00:05]} 9. Bb2 {[%emt 0:00:07]} b6 {[%emt 0:00:06]} 10. Qc2 {[%emt 0:03:06]} Bb7 {[%emt 0:00:05]} 11. Rac1 {[%emt 0:02:30]} Rac8 {[%emt 0:01:28]} 12. Rfd1 {[%emt 0:01:04]} Rfe8 {[%emt 0:05:54]} 13. e4 {[%emt 0:12:49] D45: Semi-Slav: 5 e3} (13. Bf1 a6 14. g3 c5 15. cxd5 Nxd5 16. Nxd5 Bxd5 17. e4 Bb7 18. d5 exd5 19. exd5 Ne5 20. Bg2 Nxf3+ 21. Bxf3 Rcd8 {½-½ (21) Hirneise,T (2459)-Gozzoli,Y (2569) Germany 2017}) 13... e5 $146 {[%emt 0:05:22]} ({Predecessor:} 13... dxe4 14. Nxe4 Bf4 15. Rb1 c5 16. Bd3 cxd4 17. g3 Bb8 18. Nxd4 Ng4 19. Nd2 f5 20. Re1 Nde5 {1-0 (86) Guevara Castillo,F (2339)-Peli,G (2401) ICCF email 2008}) 14. dxe5 {[%emt 0:09:55]} Nxe5 {[%emt 0:03:06]} 15. Nd4 {[%emt 0:00:58]} Bc5 {[%emt 0:07:04]} 16. exd5 {[%emt 0:11:15]} cxd5 {[%emt 0:01:54]} 17. cxd5 {[%emt 0:08:47]} Nxd5 {[%emt 0:05:08]} 18. Nxd5 {[%emt 0:02:42]} Bxd5 {[%emt 0:00:09]} 19. b4 $15 {[%emt 0:09:27]} Bxd4 {[%emt 0:05:19]} 20. Qxc8 {[%emt 0:00:06]} Bxb2 {[%emt 0:04:48]} 21. Bb5 {[%emt 0:04:54]} Rf8 {[%emt 0:06:18]} 22. Rxd5 {[%emt 0:00:12]} Qg5 {[%emt 0:08:26]} 23. Rdd1 {[%emt 0:12:01]} h6 {[%emt 0:06:43]} 24. Qc7 {[%emt 0:03:01]} Bxc1 {[%emt 0:03:27]} 25. Rxc1 {[%emt 0:00:23]} Nf3+ {[%emt 0:03:53]} 26. Kh1 {[%emt 0:00:03]} Qxb5 {[%emt 0:02:26]} 27. gxf3 {[%emt 0:00:18]} Qe2 {[%emt 0:07:47]} 28. Kg2 {[%emt 0:01:40]} Qxa2 {[%emt 0:00:13]} 29. Rd1 {[%emt 0:02:32]} Qa4 {[%emt 0:02:29]} 30. Rd4 {[%emt 0:03:08]} Re8 {[%emt 0:07:22]} 31. Rd8 {[%emt 0:10:44]} Rxd8 {[%emt 0:00:41]} 32. Qxd8+ {[%emt 0:00:03]} Kh7 {[%emt 0:00:07]} 33. Qd3+ {[%emt 0:00:01]} g6 {[%emt 0:00:03]} 34. Qd5 {[%emt 0:00:51]} Kg8 {[%emt 0:01:00]} 35. Qd8+ {[%emt 0:00:12]} Kg7 {[%emt 0:00:00]} 36. Qd4+ {[%emt 0:00:10]} Kf8 {[%emt 0:01:57]} 37. Qh8+ {[%emt 0:00:17]} Ke7 {[%emt 0:00:01]} 38. Qe5+ {[%emt 0:00:06]} Kd8 {[%emt 0:02:17]} 39. Qd6+ {[%emt 0:02:01]} Ke8 {[%emt 0:03:02]} 40. Qe5+ {[%emt 0:00:05]} Kd8 {[%emt 0:00:14]} 41. Qd6+ {[%emt 0:01:13]} Qd7 {[%emt 0:00:42]} 42. Qb8+ {[%emt 0:00:04]} Ke7 {[%emt 0:00:02]} 43. Qe5+ {[%emt 0:00:05]} Qe6 {[%emt 0:00:16]} 44. Qc7+ {[%emt 0:00:04]} Kf6 {[%emt 0:00:12]} 45. Qxa7 {[%emt 0:00:27]} Ke5 {[%emt 0:00:56]} 46. Qc7+ {[%emt 0:00:42]} Kd4 {[%emt 0:02:04]} 47. b5 {[%emt 0:00:24]} h5 {[%emt 0:00:39]} 48. Qc6 {[%emt 0:00:20]} g5 {[%emt 0:01:05]} 49. h3 {[%emt 0:00:34]} Qg6 {[%emt 0:00:42]} 50. Kg1 {[%emt 0:01:03]} Ke5 {[%emt 0:00:14]} 51. Qc7+ {[%emt 0:00:16]} Kd5 {[%emt 0:00:31]} 52. Kg2 {[%emt 0:00:13]} Kd4 {[%emt 0:02:06]} 53. Qc6 {[%emt 0:00:06]} Ke5 {[%emt 0:00:01]} 54. Qc3+ {[%emt 0:01:12]} Kd5 {[%emt 0:00:07]} 55. Qc7 {[%emt 0:00:05]} Qf6 {[%emt 0:00:17]} 56. Kg1 {[%emt 0:00:39]} h4 {[%emt 0:04:56]} 57. Kg2 {[%emt 0:00:16]} Qg6 {[%emt 0:01:22]} 58. Qc1 {[%emt 0:01:04]} Qf6 {[%emt 0:00:49]} 59. Qc7 {[%emt 0:00:18]} Qe6 {[%emt 0:00:05]} 60. Qc1 {[%emt 0:00:38]} f6 {[%emt 0:00:50]} 61. Qc7 {[%emt 0:00:29]} Qd6 {[%emt 0:00:07]} 62. Qc3 {[%emt 0:00:20]} Qc5 {[%emt 0:00:47]} 63. Qxf6 {[%emt 0:01:14]} Kc4 {[%emt 0:00:13]} 64. f4 {[%emt 0:00:48]} Qd5+ {[%emt 0:00:40]} 1/2-1/2

[Event "Cellavision Cup 2018"]
[Site "Lund"]
[Date "2018.08.05"]
[Round "8"]
[White "Bellon Lopez, Juan Manuel"]
[Black "Vernersson, Per"]
[Result "1/2-1/2"]
[ECO "D00"]
[WhiteElo "2342"]
[BlackElo "2290"]
[Annotator "NA"]
[PlyCount "112"]
[EventDate "2018.08.03"]
[EventType "swiss"]
[EventCountry "SWE"]
[SourceTitle "playchess.com"]
[Source "ChessBase"]
[SourceQuality "1"]
[TimeControl "5400+30"]

1. d4 {[%emt 0:02:02]} d5 {[%emt 0:00:00]} 2. Bf4 {[%emt 0:00:27]} Nf6 {[%emt 0:00:47]} 3. e3 {[%emt 0:00:26]} e6 {[%emt 0:02:26]} 4. Nd2 {[%emt 0:01:37]} Bd6 {[%emt 0:02:15]} 5. Bg3 {[%emt 0:00:20] D00: 1 d4 d5: Unusual lines} (5. Ngf3 O-O 6. Bd3 c5 7. c3 Nc6 8. Bg3 b6 9. e4 Be7 10. e5 Nh5 11. Nf1 cxd4 12. Nxd4 Nxd4 13. cxd4 g6 14. Ne3 f5 15. exf6 Bxf6 16. Be2 Nxg3 17. hxg3 {½-½ (37) Nakamura,H (2787)-Svidler,P (2760) Moscow 2018}) 5... Qe7 {[%emt 0:02:31]} 6. Ngf3 {[%emt 0:01:06]} Nbd7 {[%emt 0:03:23]} 7. Ne5 {[%emt 0:01:01]} O-O {[%emt 0:01:58]} 8. Bd3 {[%emt 0:00:31]} Ne8 {[%emt 0:09:50]} 9. c3 $146 {[%emt 0:10:39]} ({Predecessor:} 9. Qh5 g6 10. Qh6 f6 11. Nxd7 Bxd7 12. f4 Qg7 13. Qh4 g5 14. fxg5 fxg5 {0-1 (46) Brok,J (2073)-Markiewicz,J (2287) Warszawa 2017}) 9... f5 {[%emt 0:02:51]} 10. f4 {[%emt 0:04:49]} Nef6 {[%emt 0:01:28]} 11. Bh4 {[%emt 0:00:21]} Qe8 {[%emt 0:00:30]} 12. Nxd7 {[%emt 0:00:29]} Bxd7 {[%emt 0:00:27]} 13. Bxf6 {[%emt 0:00:14]} Rxf6 {[%emt 0:00:28]} 14. Nf3 {[%emt 0:05:40]} Bb5 {[%emt 0:03:39]} 15. a4 {[%emt 0:05:44]} Bxd3 {[%emt 0:00:52]} 16. Qxd3 {[%emt 0:00:30]} c5 {[%emt 0:05:11]} 17. Qb5 {[%emt 0:00:59]} Rf7 {[%emt 0:02:25]} 18. dxc5 {[%emt 0:02:04]} Qxb5 {[%emt 0:00:42]} 19. axb5 {[%emt 0:00:05]} Bxc5 {[%emt 0:00:04]} 20. Ne5 {[%emt 0:03:36]} Re7 {[%emt 0:03:16]} 21. Kd2 {[%emt 0:00:48]} Rc8 {[%emt 0:01:25]} 22. Rhc1 {[%emt 0:04:23]} Bb6 $11 {[%emt 0:02:40]} 23. Nf3 {[%emt 0:04:23]} Rc5 {[%emt 0:03:39]} 24. Nd4 {[%emt 0:00:28]} g6 {[%emt 0:02:41]} 25. b4 {[%emt 0:06:08]} Rc4 {[%emt 0:00:53]} 26. Nf3 {[%emt 0:02:04]} Kg7 {[%emt 0:02:13]} 27. Kd3 {[%emt 0:00:47]} Kf6 {[%emt 0:00:37]} 28. g3 {[%emt 0:00:55]} Rc8 {[%emt 0:00:29]} 29. h4 {[%emt 0:02:42]} h5 {[%emt 0:01:26]} 30. Ne5 {[%emt 0:01:10]} Rec7 {[%emt 0:00:51]} 31. Ra3 {[%emt 0:02:33]} Kg7 {[%emt 0:00:40]} 32. Rc2 {[%emt 0:01:10]} Kf6 {[%emt 0:00:27]} 33. c4 {[%emt 0:09:51]} dxc4+ {[%emt 0:00:35]} 34. Rxc4 {[%emt 0:01:40]} Rxc4 {[%emt 0:04:02]} 35. Nxc4 {[%emt 0:00:02]} Rd8+ {[%emt 0:00:18]} 36. Kc3 {[%emt 0:01:26]} Rd5 {[%emt 0:02:03]} 37. Nxb6 {[%emt 0:00:19]} axb6 {[%emt 0:00:13]} 38. Ra7 {[%emt 0:00:26]} Rd7 {[%emt 0:00:12]} 39. Ra8 {[%emt 0:00:20]} e5 {[%emt 0:02:07]} 40. Rf8+ {[%emt 0:02:38]} Ke7 {[%emt 0:00:46]} 41. Rg8 {[%emt 0:02:21]} Kf7 {[%emt 0:00:18]} 42. Rh8 {[%emt 0:01:53]} Kf6 {[%emt 0:01:46]} 43. Rc8 {[%emt 0:03:44]} e4 {[%emt 0:02:16]} 44. Kc4 {[%emt 0:00:03]} Ke6 {[%emt 0:02:44]} 45. Re8+ {[%emt 0:00:48]} Kf6 {[%emt 0:00:48]} 46. Re5 {[%emt 0:01:36]} Rc7+ {[%emt 0:01:00]} 47. Kd4 {[%emt 0:00:44]} Rc1 {[%emt 0:00:18]} 48. Re8 {[%emt 0:00:34]} Rd1+ {[%emt 0:00:52]} 49. Kc4 {[%emt 0:00:30]} Rd7 {[%emt 0:00:15]} 50. Rh8 {[%emt 0:02:00]} Rc7+ {[%emt 0:00:52]} 51. Kb3 {[%emt 0:00:29]} Rd7 {[%emt 0:00:07]} 52. Rc8 {[%emt 0:00:34]} Rd3+ {[%emt 0:01:03]} 53. Rc3 {[%emt 0:03:16]} Rxc3+ {[%emt 0:00:21]} 54. Kxc3 {[%emt 0:00:04]} Ke6 {[%emt 0:00:05]} 55. Kc4 {[%emt 0:00:10]} Kd6 {[%emt 0:00:05]} 56. Kd4 {[%emt 0:00:05]} Ke6 {[%emt 0:00:05] Kxe4 Ke5+} 1/2-1/2

[Event "Cellavision Cup 2018"]
[Site "Lund"]
[Date "2018.08.05"]
[Round "8"]
[White "Dragicevic, Drazen"]
[Black "Kiese, Matthias"]
[Result "1/2-1/2"]
[ECO "A05"]
[WhiteElo "2339"]
[BlackElo "2194"]
[Annotator "NA"]
[PlyCount "166"]
[EventDate "2018.08.03"]
[EventType "swiss"]
[EventCountry "SWE"]
[SourceTitle "playchess.com"]
[Source "ChessBase"]
[SourceQuality "1"]
[TimeControl "5400+30"]

1. Nf3 {[%emt 0:07:16]} Nf6 {[%emt 0:00:00]} 2. g3 {[%emt 0:00:10]} d5 {[%emt 0:03:58]} 3. Bg2 {[%emt 0:02:06]} Bf5 {[%emt 0:01:27]} 4. O-O {[%emt 0:02:46]} e6 {[%emt 0:00:12]} 5. c4 {[%emt 0:02:45]} c6 {[%emt 0:00:43]} 6. Qb3 {[%emt 0:02:14]} Qb6 {[%emt 0:01:35]} 7. d3 {[%emt 0:00:44]} h6 {[%emt 0:05:33]} 8. Be3 {[%emt 0:02:44]} Qxb3 {[%emt 0:01:39]} 9. axb3 {[%emt 0:00:04]} a6 {[%emt 0:00:23]} 10. Bd2 {[%emt 0:08:12]} Nbd7 {[%emt 0:06:22]} 11. b4 {[%emt 0:11:34]} Be7 {[%emt 0:17:43]} 12. b5 {[%emt 0:03:31]} cxb5 $14 {[%emt 0:04:27]} 13. cxd5 {[%emt 0:09:48]} exd5 {[%emt 0:05:03]} 14. Nd4 {[%emt 0:00:14]} Be6 {[%emt 0:03:27]} 15. Nxb5 {[%emt 0:00:47]} O-O {[%emt 0:04:41]} 16. Nd4 {[%emt 0:01:00]} Rfc8 {[%emt 0:02:16]} 17. h3 {[%emt 0:05:43]} Ne5 {[%emt 0:05:02]} 18. Na3 {[%emt 0:04:14]} Nc6 {[%emt 0:02:58]} 19. Nac2 {[%emt 0:01:10]} Nxd4 {[%emt 0:01:38]} 20. Nxd4 {[%emt 0:00:06]} Kf8 {[%emt 0:03:32]} 21. f4 {[%emt 0:02:38]} Bc5 {[%emt 0:05:33]} 22. Be3 {[%emt 0:00:07]} Bd7 {[%emt 0:03:36]} 23. Rfc1 {[%emt 0:02:00]} Ba7 {[%emt 0:04:19]} 24. Rxc8+ {[%emt 0:01:57]} Rxc8 {[%emt 0:00:28]} 25. Kf1 {[%emt 0:02:21]} h5 {[%emt 0:03:31]} 26. Ne6+ {[%emt 0:04:33]} fxe6 {[%emt 0:02:09]} 27. Bxa7 Ke7 {[%emt 0:01:02]} 28. Bd4 {[%emt 0:01:28]} g6 {[%emt 0:00:38]} 29. Kf2 {[%emt 0:00:43]} Bb5 {[%emt 0:01:05]} 30. Bf3 {[%emt 0:00:58]} Rc2 {[%emt 0:03:05]} 31. Ke1 {[%emt 0:01:08]} Rc8 {[%emt 0:00:31]} 32. Kd2 {[%emt 0:01:18]} Nd7 {[%emt 0:00:30]} 33. Ra3 {[%emt 0:06:48]} Nb8 {[%emt 0:00:53]} 34. g4 {[%emt 0:03:58]} hxg4 {[%emt 0:00:15]} 35. hxg4 {[%emt 0:00:04]} Nc6 {[%emt 0:01:08]} 36. Bc5+ {[%emt 0:01:05]} Kf7 {[%emt 0:00:29]} 37. Rc3 {[%emt 0:06:13]} Rh8 {[%emt 0:00:35]} 38. Bb6 {[%emt 0:01:16]} Rh2 {[%emt 0:01:16]} 39. Rc1 {[%emt 0:00:49]} Ke7 {[%emt 0:00:47]} 40. Bg1 {[%emt 0:01:03]} Rh3 {[%emt 0:00:38]} 41. Bc5+ {[%emt 0:00:24]} Kf7 {[%emt 0:00:14]} 42. Ke3 {[%emt 0:01:29]} Rh2 {[%emt 0:00:32]} 43. Rg1 {[%emt 0:00:29]} Kf6 {[%emt 0:00:55]} 44. Kd2 {[%emt 0:01:22]} Kf7 {[%emt 0:00:46]} 45. Ke3 {[%emt 0:00:27]} Kf6 {[%emt 0:00:06]} 46. Bd4+ {[%emt 0:00:37]} Kf7 {[%emt 0:00:18]} 47. Bc3 {[%emt 0:00:30]} Ne7 {[%emt 0:01:15]} 48. Kd4 {[%emt 0:00:22]} Nc6+ {[%emt 0:01:38]} 49. Kc5 {[%emt 0:00:17]} Ne7 {[%emt 0:02:27]} 50. Kb6 {[%emt 0:00:30]} Bc6 {[%emt 0:00:10]} 51. Be5 {[%emt 0:00:27]} d4 {[%emt 0:01:19]} 52. Bxc6 {[%emt 0:00:33]} Nxc6 {[%emt 0:00:05]} 53. Re1 {[%emt 0:00:23]} Nxe5 {[%emt 0:00:55]} 54. fxe5 {[%emt 0:00:02]} Rg2 {[%emt 0:00:19]} 55. Kxb7 {[%emt 0:00:13]} a5 {[%emt 0:00:10]} 56. Kb6 {[%emt 0:00:38]} a4 {[%emt 0:00:30]} 57. Kb5 {[%emt 0:00:58]} Rxg4 {[%emt 0:00:08]} 58. Kxa4 {[%emt 0:00:07]} Rg5 {[%emt 0:00:09]} 59. b4 {[%emt 0:00:28]} Rxe5 {[%emt 0:00:09]} 60. b5 {[%emt 0:00:06]} Ke7 {[%emt 0:00:15]} 61. Ka5 {[%emt 0:01:00]} Kd7 {[%emt 0:00:47]} 62. Ka6 {[%emt 0:00:07]} Kc7 {[%emt 0:00:51]} 63. b6+ {[%emt 0:00:57]} Kb8 {[%emt 0:00:14]} 64. Rh1 {[%emt 0:00:22]} Rh5 {[%emt 0:00:13]} 65. Rg1 {[%emt 0:00:06]} g5 {[%emt 0:00:53]} 66. Rf1 {[%emt 0:00:21]} Rh8 {[%emt 0:00:11]} 67. Rf7 {[%emt 0:00:15]} Rg8 {[%emt 0:00:32]} 68. Rb7+ {[%emt 0:00:23]} Ka8 {[%emt 0:00:21]} 69. Ra7+ {[%emt 0:00:06]} Kb8 {[%emt 0:00:06]} 70. b7 {[%emt 0:00:20]} Kc7 {[%emt 0:00:29]} 71. Ra8 {[%emt 0:00:05]} Rb8 {[%emt 0:00:07]} 72. Kb5 {[%emt 0:02:33]} Rxb7+ {[%emt 0:00:54]} 73. Kc5 {[%emt 0:01:00]} Rb2 {[%emt 0:00:57]} 74. Ra7+ {[%emt 0:00:42]} Kd8 {[%emt 0:00:38]} 75. Kd6 {[%emt 0:00:37]} Ke8 {[%emt 0:01:19]} 76. Rg7 {[%emt 0:00:33]} Rxe2 {[%emt 0:00:24]} 77. Rxg5 {[%emt 0:00:26]} Kf7 {[%emt 0:01:18]} 78. Rg4 {[%emt 0:00:35]} e5 {[%emt 0:00:22]} 79. Kd5 {[%emt 0:00:27]} Kf6 {[%emt 0:00:15]} 80. Rg8 {[%emt 0:00:28]} Re3 {[%emt 0:00:28]} 81. Rf8+ {[%emt 0:00:18]} Kg6 {[%emt 0:00:54]} 82. Re8 {[%emt 0:00:28]} Kf6 {[%emt 0:00:34]} 83. Rf8+ {[%emt 0:00:06]} Kg6 {Kxe5} 1/2-1/2

[Event "Cellavision Cup 2018"]
[Site "Lund"]
[Date "2018.08.05"]
[Round "8"]
[White "Ronneland, Daniel"]
[Black "Sjodahl, Pontus"]
[Result "0-1"]
[ECO "D38"]
[WhiteElo "2206"]
[BlackElo "2404"]
[Annotator "NA"]
[PlyCount "120"]
[EventDate "2018.08.03"]
[EventType "swiss"]
[EventCountry "SWE"]
[SourceTitle "playchess.com"]
[Source "ChessBase"]
[SourceQuality "1"]
[TimeControl "5400+30"]

1. d4 {[%emt 0:00:00]} Nf6 {[%emt 0:00:00]} 2. c4 {[%emt 0:00:21]} e6 {[%emt 0:00:15]} 3. Nf3 {[%emt 0:00:38]} d5 {[%emt 0:00:15]} 4. Nc3 {[%emt 0:00:26]} Bb4 {[%emt 0:00:39]} 5. Qa4+ {[%emt 0:01:18]} Nc6 {[%emt 0:00:07]} 6. e3 {[%emt 0:00:26]} O-O {[%emt 0:02:45]} 7. Bd2 {[%emt 0:00:48]} a6 {[%emt 0:09:52]} 8. a3 {[%emt 0:04:49]} Bd6 {[%emt 0:02:04]} 9. c5 {[%emt 0:05:40]} Be7 {[%emt 0:00:37]} 10. b4 {[%emt 0:00:56]} Ne4 {[%emt 0:03:10]} 11. b5 {[%emt 0:04:30]} Nb8 {[%emt 0:15:26]} 12. Nxe4 {[%emt 0:04:55]} dxe4 {[%emt 0:00:19]} 13. Ne5 {[%emt 0:00:14]} Nd7 {[%emt 0:08:02]} 14. c6 {[%emt 0:12:16]} Nb6 {[%emt 0:18:34]} 15. Qb3 {[%emt 0:00:40]} (15. Qc2 $16) 15... Bd6 $11 {[%emt 0:03:15]} 16. Bb4 {[%emt 0:13:15]} Nd5 {[%emt 0:04:48]} 17. cxb7 {[%emt 0:07:33]} Bxb7 {[%emt 0:00:26]} 18. bxa6 {[%emt 0:01:16]} Bxa6 {[%emt 0:00:45]} 19. Bxa6 {[%emt 0:00:06]} Rxa6 {[%emt 0:00:20]} 20. O-O {[%emt 0:00:25]} Qa8 {[%emt 0:03:09]} 21. Rab1 {[%emt 0:02:19]} Nxb4 {[%emt 0:06:11]} 22. axb4 {[%emt 0:02:07]} Rb8 {[%emt 0:01:25]} 23. Qc2 {[%emt 0:11:56]} Qd5 {[%emt 0:04:49]} 24. Nd7 {[%emt 0:05:09]} Bxh2+ {[%emt 0:03:06]} 25. Kxh2 {[%emt 0:00:14]} Qxd7 {[%emt 0:00:04]} 26. Qxe4 {[%emt 0:01:29]} Qd6+ {[%emt 0:04:26]} 27. Qe5 {[%emt 0:00:26]} Rab6 {[%emt 0:02:31]} 28. Rfc1 {[%emt 0:01:49]} Rb5 {[%emt 0:01:49]} 29. Qxd6 {[%emt 0:07:38]} cxd6 {[%emt 0:00:05]} 30. Rc7 {[%emt 0:01:57]} g6 {[%emt 0:00:28]} 31. Ra1 {[%emt 0:00:26]} Rxb4 {[%emt 0:00:51]} 32. Raa7 {[%emt 0:00:07]} Rf8 {[%emt 0:00:09]} 33. Rd7 {[%emt 0:00:20]} d5 {[%emt 0:00:22]} 34. g4 {[%emt 0:00:37]} h6 {[%emt 0:00:28]} 35. Kg3 {[%emt 0:00:34]} Kg7 {[%emt 0:00:24]} 36. Re7 {[%emt 0:02:52]} Kf6 {[%emt 0:00:41]} 37. f4 {[%emt 0:00:35]} Rb3 {[%emt 0:01:01]} 38. Kf3 {[%emt 0:00:09]} Rb1 {[%emt 0:00:23]} 39. Red7 {[%emt 0:02:05]} Rb6 {[%emt 0:02:10]} 40. Rac7 {[%emt 0:00:56]} g5 {[%emt 0:00:38]} 41. fxg5+ {[%emt 0:01:44]} hxg5 {[%emt 0:00:06]} 42. Ra7 {[%emt 0:00:21]} Rc6 {[%emt 0:00:21]} 43. Rab7 {[%emt 0:00:06]} Ra6 {[%emt 0:00:14]} 44. Rbc7 {[%emt 0:00:06]} Ra1 {[%emt 0:00:18]} 45. Rb7 {[%emt 0:00:21]} Rg1 {[%emt 0:00:19]} 46. Rdc7 {[%emt 0:00:49]} Kg6 {[%emt 0:00:13]} 47. Rd7 {[%emt 0:00:16]} Rh8 {[%emt 0:00:49]} 48. Ke2 {[%emt 0:00:38]} Rh2+ {[%emt 0:00:12]} 49. Kd3 {[%emt 0:00:12]} Rf2 {[%emt 0:00:55]} 50. Rb6 {[%emt 0:01:41]} Rf6 {[%emt 0:00:53]} 51. Rb8 {[%emt 0:00:56]} Kg7 {[%emt 0:01:01]} 52. Rdd8 {[%emt 0:00:08]} Rg6 {[%emt 0:00:22]} 53. Rg8+ {[%emt 0:01:51]} Kf6 {[%emt 0:00:07]} 54. Rgf8 {[%emt 0:01:40]} Rxg4 {[%emt 0:00:23]} 55. Rb7 {[%emt 0:00:22]} Rg7 {[%emt 0:00:09]} 56. Ke2 {[%emt 0:01:17]} Rh4 {[%emt 0:00:38]} 57. Kf3 {[%emt 0:00:17]} g4+ {[%emt 0:00:26]} 58. Kg2 {[%emt 0:00:09]} Rh3 {[%emt 0:00:52]} 59. Kf2 {[%emt 0:00:23]} g3+ {[%emt 0:00:26]} 60. Kg1 {[%emt 0:00:12]} g2 {[%emt 0:00:09]} 0-1

[Event "Cellavision Cup 2018"]
[Site "Lund"]
[Date "2018.08.05"]
[Round "8"]
[White "Wengholm, Anders"]
[Black "Kristiansen, Jens"]
[Result "0-1"]
[ECO "E95"]
[WhiteElo "2203"]
[BlackElo "2366"]
[Annotator "NA"]
[PlyCount "66"]
[EventDate "2018.08.03"]
[EventType "swiss"]
[EventCountry "SWE"]
[SourceTitle "playchess.com"]
[Source "ChessBase"]
[SourceQuality "1"]
[TimeControl "5400+30"]

1. Nf3 {[%emt 0:00:00]} g6 {[%emt 0:00:00]} 2. c4 {[%emt 0:00:00]} Bg7 {[%emt 0:00:00]} 3. Nc3 {[%emt 0:02:17]} d6 {[%emt 0:00:21]} 4. d4 {[%emt 0:04:49]} Nd7 {[%emt 0:00:44]} 5. e4 {[%emt 0:00:36]} e5 {[%emt 0:00:09]} 6. Be2 {[%emt 0:00:19]} Ngf6 {[%emt 0:00:21]} 7. O-O {[%emt 0:00:09]} O-O {[%emt 0:00:06]} 8. Re1 {[%emt 0:04:12]} c6 {[%emt 0:00:37]} 9. Bf1 {[%emt 0:05:04]} exd4 {[%emt 0:00:42]} 10. Nxd4 {[%emt 0:00:02]} Re8 {[%emt 0:00:20]} 11. Bg5 {[%emt 0:05:30]} h6 {[%emt 0:05:20]} 12. Bh4 {[%emt 0:00:22]} Nc5 {[%emt 0:03:13]} 13. Nb3 {[%emt 0:14:10]} Qb6 {[%emt 0:10:23]} 14. Nxc5 {[%emt 0:01:37]} Qxc5 {[%emt 0:02:46]} 15. Qd2 {[%emt 0:04:28]} Nh5 {[%emt 0:11:03]} 16. Na4 $15 {[%emt 0:15:45]} Qd4 {[%emt 0:08:43]} 17. Qe2 {[%emt 0:21:03]} f5 {[%emt 0:11:56]} 18. Rad1 {[%emt 0:07:58]} Qe5 {[%emt 0:00:29]} 19. exf5 {[%emt 0:01:23]} Bxf5 {[%emt 0:00:27]} 20. Qd2 {[%emt 0:01:17]} Qf4 {[%emt 0:00:29]} 21. Rxe8+ {[%emt 0:01:27]} Rxe8 {[%emt 0:00:07]} 22. Qxf4 {[%emt 0:01:03]} Nxf4 {[%emt 0:00:08]} 23. Rxd6 {[%emt 0:00:37]} Re1 {[%emt 0:06:41]} 24. f3 {[%emt 0:01:15]} Rc1 {[%emt 0:00:36]} 25. Kf2 {[%emt 0:03:09]} Rc2+ {[%emt 0:00:47]} 26. Ke3 {[%emt 0:00:07]} Nxg2+ {[%emt 0:13:31]} 27. Bxg2 {[%emt 0:00:01]} Rxc4 {[%emt 0:01:07]} 28. Bf6 {[%emt 0:02:07]} Bxf6 {[%emt 0:00:27]} 29. Rxf6 {[%emt 0:00:04]} Rxa4 {[%emt 0:00:06]} 30. a3 {[%emt 0:00:12]} Rc4 {[%emt 0:01:36]} 31. Bf1 {[%emt 0:00:43]} Rc2 {[%emt 0:02:16]} 32. Kd4 {[%emt 0:00:36]} Kg7 {[%emt 0:01:48]} 33. Rd6 {[%emt 0:00:07]} Rxb2 {[%emt 0:00:51]} 0-1